fUSD/lending_fUSD_20240608
["ID","MTS","AMOUNT","RATE_DAILY","PERIOD"]
[328812408,1717823438366,-600.0,0.0003,2]
[328812409,1717823438382,-3883.60910083,0.0003,2]
[328812410,1717823438394,-3210.79791008,0.0003,2]
[328812417,1717823440980,-500.0,0.00029983,2]
[328812418,1717823440990,-500.0,0.00029983,2]
[328812419,1717823440999,-500.0,0.00029983,2]
[328812420,1717823441009,-25853.33808669,0.0003,2]
[328812421,1717823441054,-1999.98348,0.0003,2]
[328812422,1717823441140,-939.63137312,0.0003,2]
[328812423,1717823441153,-1555.73494035,0.0003,2]
[328812424,1717823441326,-294999.08420339,0.0003,2]
[328812425,1717823441338,-3157.009155,0.0003,2]
[328812426,1717823441349,-3607.1257,0.0003,2]
[328812427,1717823441360,-4738.4391021,0.0003,2]
[328812431,1717823443242,-500.0,0.00029983,2]
[328812432,1717823443252,-500.0,0.00029983,2]
[328812433,1717823443262,-500.0,0.00029983,2]
[328812434,1717823443273,-151.0,0.00029999,7]
[328812435,1717823443284,-264.0,0.0003,5]
[328812436,1717823443295,-1135883.34032119,0.0003,2]
[328812437,1717823443327,-1000.0,0.0003,2]
[328812438,1717823443355,-2538.20321235,0.0003,2]
[328812439,1717823443366,-2556.39470558,0.0003,2]
[328812440,1717823443536,-500.0,0.00029983,2]
[328812441,1717823443547,-227758.12005583,0.0003,2]
[328812442,1717823443563,-1889.08592415,0.0003,2]
[328812451,1717823446234,-5280.71431622,0.000299,2]
[328812452,1717823446247,-412.82904124,0.00029983,2]
[328812453,1717823446260,-87.17095876,0.00029983,2]
[328812454,1717823446271,-500.0,0.00029983,2]
[328812455,1717823446283,-500.0,0.00029983,2]
[328812456,1717823446293,-500.0,0.00029983,2]
[328812457,1717823446302,-301.94974125,0.00029983,2]
[328812486,1717823824786,244.79,0.00027512,120]
[328812487,1717823929956,-1337.33567298,0.00017259,2]
[328812492,1717824443143,-310.26012697,0.00017159,2]
[328812493,1717824443165,-150.0,0.00017257,2]
[328812494,1717824443188,-8815.30169822,0.00017258,2]
[328812495,1717824449084,-2423.14384854,0.00017258,2]
[328812498,1717824554102,-188.05936611,0.00017158,2]
[328812499,1717824554128,-942.09246201,0.00017257,2]
[328812500,1717824554151,-1835.23667188,0.00017258,2]
[328812501,1717824560098,-1285.276437,0.00017258,2]
[328812513,1717824632261,-150.0,0.00017257,2]
[328812514,1717824632271,-1042.51244556,0.00017258,2]
[328812515,1717824632280,-210.0,0.00018983,2]
[328812516,1717824632289,-499.99,0.00019726,2]
[328812517,1717824632299,-226.64653432,0.000201,2]
[328812518,1717824632309,-172.24,0.00020811,2]
[328812519,1717824632319,-276.0,0.00020881,2]
[328812520,1717824632329,-167.99,0.00021384,2]
[328812521,1717824632339,-3525.9465412,0.00021384,2]
[328812522,1717824632352,-3555.64828,0.00021384,2]
[328812523,1717824632443,-2918.3951788,0.00021384,2]
[328812524,1717824632453,-462.52,0.00021384,2]
[328812525,1717824632463,-6076.73,0.000219,2]
[328812526,1717824632472,-150.99,0.000219,2]
[328812527,1717824632482,-752.62637866,0.000219,2]
[328812528,1717824632492,-2000.0,0.00023,2]
[328812529,1717824632505,-548.88488712,0.00023986,2]
[328812530,1717824632515,-158.01974831,0.00023998,2]
[328812531,1717824632525,-152.46,0.00024384,2]
[328812532,1717824632535,-155.07,0.00024384,2]
[328812533,1717824632546,-446.31,0.00024746,2]
[328812534,1717824632558,-5000.0,0.00025,2]
[328812535,1717824632569,-1392.53462796,0.00025,2]
[328812536,1717824632581,-200.0,0.00025349,2]
[328812537,1717824632591,-1283.85,0.00025373,2]
[328812538,1717824632600,-160.61,0.00025597,2]
[328812539,1717824632611,-1851.36110202,0.000259,2]
[328812540,1717824632641,-34160.89464085,0.000259,2]
[328812541,1717824632653,-250.0,0.00025976,2]
[328812542,1717824632664,-476.49,0.00025996,2]
[328812543,1717824632674,-710.06,0.00025997,2]
[328812544,1717824632684,-23900.0,0.00026031,2]
[328812545,1717824632693,-167.581,0.00026041,2]
[328812546,1717824632703,-160.61,0.00026041,2]
[328812547,1717824632714,-2429.29,0.00026047,2]
[328812548,1717824632723,-3142.75,0.00026056,2]
[328812549,1717824632733,-150.0,0.00026117,2]
[328812550,1717824632744,-812.8,0.0002614,2]
[328812551,1717824632754,-600.0,0.00026158,2]
[328812552,1717824632764,-8406.92,0.00026194,2]
[328812553,1717824632774,-160.61,0.00026486,2]
[328812554,1717824632784,-2494.06,0.00026502,2]
[328812555,1717824632794,-2761.25,0.00026521,2]
[328812556,1717824632804,-204.14,0.00026545,2]
[328812557,1717824632813,-177.55,0.00026629,2]
[328812558,1717824632823,-400.0,0.00026742,2]
[328812559,1717824632832,-300.0,0.00026776,2]
[328812560,1717824632842,-166.66666668,0.00026817,2]
[328812561,1717824632851,-155.21101479,0.00026901,2]
[328812563,1717824632861,-158.38144346,0.00026922,2]
[328812566,1717824632870,-160.61,0.00026931,2]
[328812569,1717824632880,-152.02053886,0.00026936,2]
[328812572,1717824632889,-446.31,0.00027009,2]
[328812575,1717824632899,-166.66666668,0.00027078,2]
[328812578,1717824632908,-154.3630478,0.00027153,2]
[328812581,1717824632917,-169.74,0.00027202,2]
[328812583,1717824632927,-166.83499667,0.00027335,2]
[328812587,1717824632937,-152.02053886,0.0002739,2]
[328812590,1717824632946,-2485.09344287,0.000274,2]
[328812593,1717824632956,-167.581,0.00027409,2]
[328812596,1717824632965,-150.0,0.0002748,2]
[328812599,1717824632975,-153.9373188,0.00027499,2]
[328812601,1717824632984,-250.0,0.00027512,2]
[328812603,1717824632994,-188.88,0.00027512,2]
[328812605,1717824633004,-50728.45,0.00027512,2]
[328812607,1717824633014,-250.0,0.00027512,2]
[328812609,1717824633023,-19986.14,0.00027512,2]
[328812611,1717824633033,-180.0,0.00027561,2]
[328812613,1717824633043,-356.35,0.00027732,2]
[328812615,1717824633053,-204.14,0.00027872,2]
[328812617,1717824633063,-158.38144346,0.00027964,2]
[328812619,1717824633073,-152.02053886,0.00027994,2]
[328812622,1717824633083,-541.96148365,0.00028,2]
[328812624,1717824633093,-250.0,0.00028028,2]
[328812626,1717824633103,-152.02053886,0.00028062,2]
[328812628,1717824633114,-153.9373188,0.00028087,2]
[328812630,1717824633124,-155.91214278,0.00028095,2]
[328812632,1717824633134,-300.0,0.00028146,2]
[328812634,1717824633144,-152.02053886,0.00028199,2]
[328812636,1717824633154,-2260.23804581,0.0002833,2]
[328812638,1717824633164,-158.38144346,0.00028335,2]
[328812640,1717824633174,-167.0,0.00028337,2]
[328812642,1717824633183,-155.17713616,0.00028373,2]
[328812644,1717824633194,-155.91214278,0.00028397,2]
[328812646,1717824633203,-152.02053886,0.00028481,2]
[328812649,1717824633214,-153.04761943,0.00028487,2]
[328812651,1717824633223,-436.41837903,0.00028498,7]
[328812653,1717824633232,-151.0,0.00028523,7]
[328812655,1717824633242,-350.0,0.00028576,2]
[328812657,1717824633254,-158.38144346,0.00028578,2]
[328812659,1717824633263,-155.21101479,0.00028707,2]
[328812661,1717824633273,-2877.4283,0.0002873,2]
[328812663,1717824633282,-4308.9775,0.0002873,2]
[328812665,1717824633292,-155.21101479,0.00028792,2]
[328812667,1717824633302,-171.08088885,0.00028844,2]
[328812669,1717824633311,-167.581,0.00028919,2]
[328812671,1717824633321,-152.02053886,0.00028941,2]
[328812673,1717824633331,-1009.12928,0.00029,2]
[328812675,1717824633342,-153.04761943,0.00029018,2]
[328812677,1717824633352,-150.0,0.00029027,2]
[328812679,1717824633361,-153.9373188,0.00029042,2]
[328812681,1717824633372,-155.21101479,0.00029054,2]
[328812683,1717824633382,-450.0,0.00029124,2]
[328812685,1717824633392,-204.14,0.00029199,2]
[328812687,1717824633402,-153.04761943,0.00029217,2]
[328812689,1717824633411,-2761.25,0.0002926,2]
[328812691,1717824633421,-151.0,0.00029261,7]
[328812693,1717824633431,-167.0,0.00029273,2]
[328812695,1717824633440,-446.31,0.00029273,2]
[328812697,1717824633450,-153.9373188,0.00029304,2]
[328812699,1717824633460,-800.0,0.00029315,2]
[328812701,1717824633469,-155.66037222,0.00029385,2]
[328812703,1717824633479,-153.04761943,0.00029401,2]
[328812705,1717824633488,-168.20335137,0.00029407,2]
[328812707,1717824633498,-600.0,0.00029428,2]
[328812709,1717824633508,-1000.0,0.00029496,2]
[328812711,1717824633518,-2500.0,0.00029496,2]
[328812713,1717824633528,-1928.89970214,0.00029577,2]
[328812715,1717824633538,-9681.5374,0.00029596,2]
[328812717,1717824633549,-12106.6915,0.00029596,2]
[328812719,1717824633559,-41764.7326,0.00029596,2]
[328812721,1717824633570,-173.11948159,0.00029599,2]
[328812723,1717824633582,-160.378114,0.0002962,2]
[328812725,1717824633592,-158.38144346,0.0002962,2]
[328812727,1717824633602,-1928.89970211,0.00029623,2]
[328812729,1717824633612,-382.13509686,0.00029643,2]
[328812731,1717824633623,-297.6043,0.00029668,2]
[328812733,1717824633633,-16042.7857,0.00029668,2]
[328812735,1717824633643,-1928.89970211,0.00029669,2]
[328812737,1717824633656,-550.0,0.00029672,2]
[328812739,1717824633666,-329.38061444,0.00029677,2]
[328812741,1717824633676,-496.8337,0.00029696,2]
[328812743,1717824633686,-100000.0,0.00029696,2]
[328812746,1717824633705,-1000.0,0.00029696,2]
[328812748,1717824633716,-811.30557095,0.00029699,4]
[328812750,1717824633727,-3000.0,0.000297,2]
[328812752,1717824633737,-158.38144346,0.00029712,2]
[328812754,1717824633748,-1928.89970211,0.00029715,2]
[328812756,1717824633759,-167.75806264,0.00029732,2]
[328812758,1717824633769,-329.38061444,0.00029751,2]
[328812760,1717824633779,-500.0,0.00029757,2]
[328812762,1717824633789,-1928.89970211,0.00029762,2]
[328812764,1717824633800,-3272.7917,0.00029775,2]
[328812767,1717824633811,-547.2426206,0.00029777,2]
[328812769,1717824633821,-446.0,0.00029796,2]
[328812771,1717824633832,-150.0,0.00029796,2]
[328812773,1717824633842,-808.0,0.00029796,2]
[328812775,1717824633852,-165.0,0.00029796,2]
[328812777,1717824633862,-2405.0,0.00029796,2]
[328812779,1717824633873,-150.0,0.00029796,2]
[328812781,1717824633883,-1304.0,0.00029796,2]
[328812783,1717824633894,-3174.0,0.00029796,2]
[328812785,1717824633904,-1977.0,0.00029796,2]
[328812787,1717824633915,-546.0,0.00029796,2]
[328812789,1717824633925,-1065.0,0.00029796,2]
[328812791,1717824633935,-5781.0,0.00029796,2]
[328812793,1717824633946,-290.0,0.00029796,2]
[328812795,1717824633956,-357.0,0.00029796,2]
[328812797,1717824633966,-5153.0,0.00029796,2]
[328812799,1717824633976,-978.0,0.00029796,2]
[328812801,1717824633987,-155.66037222,0.00029817,2]
[328812803,1717824633997,-329.38061444,0.00029826,2]
[328812806,1717824634008,-547.2426206,0.00029826,2]
[328812808,1717824634018,-588.62,0.00029874,4]
[328812810,1717824634028,-588.62,0.00029874,4]
[328812812,1717824634039,-1845.22,0.00029874,4]
[328812814,1717824634050,-1845.22,0.00029874,4]
[328812816,1717824634061,-7440.10235811,0.00029875,2]
[328812818,1717824634071,-172.04624233,0.00029875,2]
[328812820,1717824634081,-170.18209611,0.00029875,2]
[328812822,1717824634092,-547.2426206,0.00029875,2]
[328812824,1717824634102,-500.0,0.00029875,2]
[328812826,1717824634113,-245000.0,0.00029875,2]
[328812828,1717824634123,-3855.9229,0.00029875,2]
[328812830,1717824634133,-7440.10235803,0.00029877,2]
[328812832,1717824634144,-7440.10235803,0.0002988,2]
[328812834,1717824634153,-7440.10235803,0.00029882,2]
[328812836,1717824634164,-7440.10235803,0.00029884,2]
[328812838,1717824634174,-7440.10235803,0.00029886,2]
[328812840,1717824634184,-153.9373188,0.00029888,2]
[328812842,1717824634194,-7440.10235803,0.00029889,2]
[328812844,1717824634204,-236.0,0.00029891,5]
[328812846,1717824634214,-7440.10235803,0.00029891,2]
[328812848,1717824634225,-7440.10235803,0.00029893,2]
[328812850,1717824634235,-7440.10235803,0.00029895,2]
[328812852,1717824634246,-7440.10235803,0.00029898,2]
[328812854,1717824634256,-1845.22,0.00029899,4]
[328812856,1717824634266,-1555.0753,0.000299,2]
[328812858,1717824634276,-7440.10235803,0.000299,2]
[328812860,1717824634287,-167.75806264,0.000299,2]
[328812862,1717824634298,-170.18209611,0.000299,2]
[328812864,1717824634308,-329.38061444,0.000299,2]
[328812866,1717824634317,-215.09336921,0.000299,2]
[328812868,1717824634328,-152.11,0.00029964,2]
[328812870,1717824634338,-588.62,0.00029974,4]
[328812872,1717824634348,-588.62,0.00029974,4]
[328812874,1717824634358,-588.62,0.00029974,4]
[328812876,1717824634367,-588.62,0.00029974,4]
[328812878,1717824634377,-1845.22,0.00029974,4]
[328812880,1717824634387,-1845.22,0.00029974,4]
[328812882,1717824634398,-1845.22,0.00029974,4]
[328812884,1717824634408,-1845.22,0.00029974,4]
[328812886,1717824634418,-188778.34227695,0.00029975,7]
[328813261,1717824638352,-366.03730547,0.00027412,2]
[328813264,1717824638364,-640.24707616,0.00029796,2]
[328813273,1717824638446,-3562.26492384,0.00029796,2]
[328813275,1717824638457,-1332.50410051,0.00029808,2]
[328813284,1717824638537,-596.3956016,0.00029808,2]
[328813286,1717824638548,-175.20312856,0.00029875,2]
[328813288,1717824638560,-14.00131984,0.00029965,2]
[328813311,1717824638796,-165.5203204,0.00029965,2]
[328813313,1717824638809,-2166.78342138,0.00029975,7]
[328813704,1717824642692,-366.03730547,0.00027688,2]
[328813706,1717824642703,-189.79,0.00028999,2]
[328813708,1717824642713,-1928.89970211,0.00029854,2]
[328813710,1717824642724,-455.48968609,0.00029874,4]
[328813712,1717824642734,-79915.51616192,0.00029975,7]
[328813729,1717824642895,-94.86406815,0.00029975,7]
[328813760,1717824643302,-1268.0,0.00029796,2]
[328813762,1717824643313,-726.61619086,0.000299,2]
[328813764,1717824643324,-68618.29654494,0.00029975,7]
[328813783,1717824643535,-14050.7212428,0.00029975,7]
[328813786,1717824643547,-9011.70002756,0.00029975,7]
[328813788,1717824643559,-653.31270692,0.00029975,7]
[328813795,1717824643633,-406377.29386524,0.00029975,7]
[328813798,1717824643647,-204566.989558,0.00029975,7]
[328813800,1717824643657,-500.0,0.00029975,2]
[328813802,1717824643667,-500.0,0.00029975,2]
[328813804,1717824643677,-500.0,0.00029975,2]
[328813806,1717824643689,-500.0,0.00029975,2]
[328813808,1717824643699,-500.0,0.00029975,2]
[328813810,1717824643709,-500.0,0.00029975,2]
[328813812,1717824643719,-500.0,0.00029975,2]
[328813814,1717824643730,-500.0,0.00029975,2]
[328813816,1717824643740,-500.0,0.00029975,2]
[328813818,1717824643750,-500.0,0.00029975,2]
[328813821,1717824643942,-500.0,0.00029975,2]
[328813822,1717824643953,-500.0,0.00029975,2]
[328813823,1717824643963,-500.0,0.00029975,2]
[328813824,1717824643974,-500.0,0.00029975,2]
[328813825,1717824643984,-500.0,0.00029975,2]
[328813826,1717824643994,-500.0,0.00029975,2]
[328813827,1717824644003,-500.0,0.00029975,2]
[328813828,1717824644013,-500.0,0.00029975,2]
[328813829,1717824644023,-500.0,0.00029975,2]
[328813830,1717824644034,-500.0,0.00029975,2]
[328813831,1717824644045,-500.0,0.00029975,2]
[328813832,1717824644056,-500.0,0.00029975,2]
[328813833,1717824644067,-500.0,0.00029975,2]
[328813834,1717824644077,-500.0,0.00029975,2]
[328813835,1717824644085,-500.0,0.00029975,2]
[328813836,1717824644095,-500.0,0.00029975,2]
[328813837,1717824644105,-500.0,0.00029975,2]
[328813838,1717824644115,-500.0,0.00029975,2]
[328813839,1717824644125,-500.0,0.00029975,2]
[328813840,1717824644135,-500.0,0.00029975,2]
[328813841,1717824644145,-500.0,0.00029975,2]
[328813842,1717824644155,-500.0,0.00029975,2]
[328813844,1717824644165,-500.0,0.00029975,2]
[328813846,1717824644175,-500.0,0.00029975,2]
[328813848,1717824644185,-500.0,0.00029975,2]
[328813850,1717824644195,-500.0,0.00029975,2]
[328813852,1717824644205,-500.0,0.00029975,2]
[328813854,1717824644215,-500.0,0.00029975,2]
[328813855,1717824644224,-500.0,0.00029975,2]
[328813856,1717824644234,-500.0,0.00029975,2]
[328813857,1717824644243,-500.0,0.00029975,2]
[328813858,1717824644254,-500.0,0.00029975,2]
[328813859,1717824644264,-500.0,0.00029975,2]
[328813860,1717824644274,-500.0,0.00029975,2]
[328813861,1717824644283,-500.0,0.00029975,2]
[328813862,1717824644293,-500.0,0.00029975,2]
[328813863,1717824644305,-500.0,0.00029975,2]
[328813864,1717824644314,-500.0,0.00029975,2]
[328813866,1717824644327,-500.0,0.00029975,2]
[328813868,1717824644337,-500.0,0.00029975,2]
[328813870,1717824644347,-500.0,0.00029975,2]
[328813872,1717824644357,-500.0,0.00029975,2]
[328813874,1717824644366,-500.0,0.00029975,2]
[328813876,1717824644376,-500.0,0.00029975,2]
[328813878,1717824644385,-500.0,0.00029975,2]
[328813880,1717824644395,-500.0,0.00029975,2]
[328813882,1717824644404,-500.0,0.00029975,2]
[328813884,1717824644414,-500.0,0.00029975,2]
[328813886,1717824644424,-500.0,0.00029975,2]
[328813888,1717824644434,-500.0,0.00029975,2]
[328813889,1717824644444,-500.0,0.00029975,2]
[328813890,1717824644453,-500.0,0.00029975,2]
[328813891,1717824644463,-500.0,0.00029975,2]
[328813892,1717824644473,-500.0,0.00029975,2]
[328813893,1717824644482,-500.0,0.00029975,2]
[328813894,1717824644492,-500.0,0.00029975,2]
[328813895,1717824644501,-500.0,0.00029975,2]
[328813896,1717824644511,-500.0,0.00029975,2]
[328813897,1717824644521,-500.0,0.00029975,2]
[328813898,1717824644530,-500.0,0.00029975,2]
[328813900,1717824644540,-500.0,0.00029975,2]
[328813902,1717824644550,-500.0,0.00029975,2]
[328813904,1717824644560,-500.0,0.00029975,2]
[328813906,1717824644570,-500.0,0.00029975,2]
[328813908,1717824644584,-500.0,0.00029975,2]
[328813910,1717824644595,-500.0,0.00029975,2]
[328813912,1717824644605,-500.0,0.00029975,2]
[328813914,1717824644615,-500.0,0.00029975,2]
[328813916,1717824644625,-500.0,0.00029975,2]
[328813918,1717824644636,-500.0,0.00029975,2]
[328813920,1717824644646,-500.0,0.00029975,2]
[328813922,1717824644657,-500.0,0.00029975,2]
[328813924,1717824644666,-500.0,0.00029975,2]
[328813926,1717824644677,-500.0,0.00029975,2]
[328813928,1717824644688,-500.0,0.00029975,2]
[328813930,1717824644698,-500.0,0.00029975,2]
[328813931,1717824644708,-500.0,0.00029975,2]
[328813932,1717824644718,-500.0,0.00029975,2]
[328813933,1717824644728,-500.0,0.00029975,2]
[328813934,1717824644737,-500.0,0.00029975,2]
[328813935,1717824644747,-500.0,0.00029975,2]
[328813936,1717824644756,-500.0,0.00029975,2]
[328813937,1717824644766,-500.0,0.00029975,2]
[328813938,1717824644776,-500.0,0.00029975,2]
[328813939,1717824644786,-500.0,0.00029975,2]
[328813940,1717824644795,-500.0,0.00029975,2]
[328813941,1717824644806,-500.0,0.00029975,2]
[328813942,1717824644816,-500.0,0.00029975,2]
[328813943,1717824644826,-500.0,0.00029975,2]
[328813944,1717824644837,-500.0,0.00029975,2]
[328813945,1717824644847,-500.0,0.00029975,2]
[328813946,1717824644857,-500.0,0.00029975,2]
[328813947,1717824644867,-500.0,0.00029975,2]
[328813948,1717824644877,-500.0,0.00029975,2]
[328813949,1717824644886,-500.0,0.00029975,2]
[328813950,1717824644896,-500.0,0.00029975,2]
[328813951,1717824644907,-500.0,0.00029975,2]
[328813952,1717824644917,-500.0,0.00029975,2]
[328813953,1717824644927,-500.0,0.00029975,2]
[328813954,1717824644937,-500.0,0.00029975,2]
[328813955,1717824644947,-500.0,0.00029975,2]
[328813956,1717824644957,-500.0,0.00029975,2]
[328813957,1717824644966,-500.0,0.00029975,2]
[328813958,1717824644976,-500.0,0.00029975,2]
[328813959,1717824644985,-500.0,0.00029975,2]
[328813960,1717824644995,-500.0,0.00029975,2]
[328813961,1717824645006,-500.0,0.00029975,2]
[328813962,1717824645015,-500.0,0.00029975,2]
[328813963,1717824645025,-500.0,0.00029975,2]
[328813964,1717824645035,-500.0,0.00029975,2]
[328813965,1717824645045,-500.0,0.00029975,2]
[328813966,1717824645055,-500.0,0.00029975,2]
[328813967,1717824645064,-500.0,0.00029975,2]
[328813968,1717824645073,-500.0,0.00029975,2]
[328813969,1717824645083,-500.0,0.00029975,2]
[328813970,1717824645092,-500.0,0.00029975,2]
[328813971,1717824645102,-500.0,0.00029975,2]
[328813972,1717824645112,-500.0,0.00029975,2]
[328813973,1717824645122,-500.0,0.00029975,2]
[328813974,1717824645132,-500.0,0.00029975,2]
[328813975,1717824645142,-500.0,0.00029975,2]
[328813976,1717824645151,-500.0,0.00029975,2]
[328813977,1717824645161,-500.0,0.00029975,2]
[328813978,1717824645172,-500.0,0.00029975,2]
[328813979,1717824645182,-500.0,0.00029975,2]
[328813980,1717824645191,-500.0,0.00029975,2]
[328813981,1717824645201,-500.0,0.00029975,2]
[328813982,1717824645211,-500.0,0.00029975,2]
[328813983,1717824645221,-500.0,0.00029975,2]
[328813984,1717824645231,-500.0,0.00029975,2]
[328813985,1717824645241,-500.0,0.00029975,2]
[328813986,1717824645251,-500.0,0.00029975,2]
[328813987,1717824645261,-500.0,0.00029975,2]
[328813988,1717824645271,-500.0,0.00029975,2]
[328813989,1717824645280,-500.0,0.00029975,2]
[328813990,1717824645290,-500.0,0.00029975,2]
[328813991,1717824645299,-500.0,0.00029975,2]
[328813992,1717824645309,-500.0,0.00029975,2]
[328813993,1717824645319,-500.0,0.00029975,2]
[328813994,1717824645328,-500.0,0.00029975,2]
[328813995,1717824645338,-500.0,0.00029975,2]
[328813996,1717824645348,-500.0,0.00029975,2]
[328813997,1717824645357,-500.0,0.00029975,2]
[328813998,1717824645367,-500.0,0.00029975,2]
[328813999,1717824645377,-500.0,0.00029975,2]
[328814000,1717824645387,-500.0,0.00029975,2]
[328814001,1717824645397,-500.0,0.00029975,2]
[328814002,1717824645407,-500.0,0.00029975,2]
[328814003,1717824645416,-500.0,0.00029975,2]
[328814004,1717824645425,-500.0,0.00029975,2]
[328814006,1717824645435,-500.0,0.00029975,2]
[328814008,1717824645444,-500.0,0.00029975,2]
[328814010,1717824645454,-500.0,0.00029975,2]
[328814012,1717824645464,-500.0,0.00029975,2]
[328814014,1717824645474,-500.0,0.00029975,2]
[328814016,1717824645484,-500.0,0.00029975,2]
[328814018,1717824645494,-500.0,0.00029975,2]
[328814020,1717824645503,-500.0,0.00029975,2]
[328814022,1717824645513,-500.0,0.00029975,2]
[328814024,1717824645522,-500.0,0.00029975,2]
[328814026,1717824645532,-500.0,0.00029975,2]
[328814027,1717824645541,-500.0,0.00029975,2]
[328814030,1717824645551,-500.0,0.00029975,2]
[328814032,1717824645561,-500.0,0.00029975,2]
[328814034,1717824645574,-500.0,0.00029975,2]
[328814035,1717824645584,-500.0,0.00029975,2]
[328814038,1717824645595,-500.0,0.00029975,2]
[328814040,1717824645604,-500.0,0.00029975,2]
[328814041,1717824645615,-500.0,0.00029975,2]
[328814043,1717824645625,-500.0,0.00029975,2]
[328814045,1717824645635,-500.0,0.00029975,2]
[328814047,1717824645644,-500.0,0.00029975,2]
[328814049,1717824645656,-500.0,0.00029975,2]
[328814051,1717824645667,-500.0,0.00029975,2]
[328814053,1717824645676,-500.0,0.00029975,2]
[328814055,1717824645686,-500.0,0.00029975,2]
[328814057,1717824645695,-500.0,0.00029975,2]
[328814059,1717824645705,-500.0,0.00029975,2]
[328814061,1717824645714,-500.0,0.00029975,2]
[328814063,1717824645724,-500.0,0.00029975,2]
[328814065,1717824645734,-500.0,0.00029975,2]
[328814067,1717824645743,-500.0,0.00029975,2]
[328814069,1717824645753,-500.0,0.00029975,2]
[328814071,1717824645763,-500.0,0.00029975,2]
[328814073,1717824645772,-500.0,0.00029975,2]
[328814075,1717824645782,-500.0,0.00029975,2]
[328814077,1717824645791,-500.0,0.00029975,2]
[328814079,1717824645801,-500.0,0.00029975,2]
[328814081,1717824645812,-500.0,0.00029975,2]
[328814083,1717824645821,-500.0,0.00029975,2]
[328814085,1717824645830,-500.0,0.00029975,2]
[328814087,1717824645839,-500.0,0.00029975,2]
[328814089,1717824645851,-500.0,0.00029975,2]
[328814091,1717824645861,-500.0,0.00029975,2]
[328814093,1717824645871,-500.0,0.00029975,2]
[328814095,1717824645880,-500.0,0.00029975,2]
[328814097,1717824645890,-500.0,0.00029975,2]
[328814099,1717824645900,-500.0,0.00029975,2]
[328814101,1717824645910,-500.0,0.00029975,2]
[328814103,1717824645920,-500.0,0.00029975,2]
[328814105,1717824645930,-500.0,0.00029975,2]
[328814107,1717824645939,-500.0,0.00029975,2]
[328814109,1717824645949,-500.0,0.00029975,2]
[328814111,1717824645958,-500.0,0.00029975,2]
[328814113,1717824645968,-500.0,0.00029975,2]
[328814115,1717824645977,-500.0,0.00029975,2]
[328814117,1717824645987,-500.0,0.00029975,2]
[328814119,1717824645997,-500.0,0.00029975,2]
[328814121,1717824646006,-500.0,0.00029975,2]
[328814123,1717824646016,-500.0,0.00029975,2]
[328814125,1717824646025,-500.0,0.00029975,2]
[328814127,1717824646035,-500.0,0.00029975,2]
[328814128,1717824646044,-500.0,0.00029975,2]
[328814129,1717824646053,-500.0,0.00029975,2]
[328814130,1717824646063,-500.0,0.00029975,2]
[328814131,1717824646072,-500.0,0.00029975,2]
[328814132,1717824646082,-500.0,0.00029975,2]
[328814133,1717824646091,-500.0,0.00029975,2]
[328814134,1717824646101,-500.0,0.00029975,2]
[328814135,1717824646110,-500.0,0.00029975,2]
[328814137,1717824646120,-500.0,0.00029975,2]